fUSD/lending_fUSD_20240317
["ID","MTS","AMOUNT","RATE_DAILY","PERIOD"]
[319339013,1710673841874,-159.13078531,0.00016717,2]
[319339014,1710673841883,-746.24802683,0.0001681,2]
[319339015,1710673841893,-500.0,0.00016834,2]
[319339016,1710673841902,-870.3329582,0.00016887,2]
[319339017,1710673841912,-500.0,0.0001699,2]
[319339018,1710673841921,-319.98763292,0.0001699,2]
[319339019,1710673841931,-8249.71603748,0.00016991,2]
[319339020,1710673841940,-600.0,0.00017,3]
[319339021,1710673841950,-1382.05,0.00017043,2]
[319339022,1710673841959,-2382.3754,0.00017043,2]
[319339023,1710673841969,-500.0,0.0001714,2]
[319339024,1710673841979,-500.0,0.0001714,2]
[319339025,1710673841990,-600.2,0.0001714,2]
[319339026,1710673841999,-500.0,0.00017141,2]
[319339027,1710673842009,-500.0,0.00017141,2]
[319339028,1710673842019,-500.0,0.00017141,2]
[319339029,1710673842029,-470.67,0.00017141,2]
[319339030,1710673842038,-500.0,0.00017141,2]
[319339031,1710673842048,-500.0,0.00017141,2]
[319339032,1710673842057,-500.0,0.00017141,2]
[319339033,1710673842067,-228.34,0.00017141,2]
[319339034,1710673842077,-500.0,0.00017141,2]
[319339035,1710673842088,-500.0,0.00017141,2]
[319339036,1710673842096,-500.0,0.00017141,2]
[319339037,1710673842106,-500.0,0.00017141,2]
[319339038,1710673842117,-500.0,0.00017141,2]
[319339039,1710673842126,-161.14,0.00017157,2]
[319339040,1710673842135,-611.0,0.000172,2]
[319339041,1710673842144,-155.71899125,0.00017215,2]
[319339042,1710673842154,-237.930345,0.0001726,2]
[319339043,1710673842163,-600.0,0.00017261,2]
[319339044,1710673842173,-151.45421478,0.00017266,2]
[319339045,1710673842182,-638.96594961,0.00017267,2]
[319339046,1710673842191,-229.38618351,0.00017287,2]
[319339047,1710673842201,-8249.71603748,0.00017309,2]
[319339048,1710673842211,-287.41,0.00017316,2]
[319339049,1710673842220,-922.18,0.00017377,2]
[319339050,1710673842229,-229.38618351,0.00017381,2]
[319339051,1710673842239,-500.0,0.00017382,2]
[319339052,1710673842249,-870.3329582,0.00017391,2]
[319339053,1710673842258,-156.51853804,0.00017393,2]
[319339054,1710673842268,-159.13078531,0.00017419,2]
[319339055,1710673842278,-158.29036305,0.0001746,2]
[319339056,1710673842287,-517.86735709,0.00017465,2]
[319339057,1710673842297,-2500.0,0.000175,2]
[319339058,1710673842306,-155.71899125,0.00017538,2]
[319339059,1710673842316,-229.38618351,0.00017586,2]
[319339060,1710673842325,-150.80584846,0.00017605,2]
[319339061,1710673842337,-8249.71603748,0.00017627,2]
[319339062,1710673842347,-150.80584846,0.00017637,2]
[319339063,1710673842356,-156.51853804,0.00017643,2]
[319339064,1710673842365,-151.45421478,0.00017676,2]
[319339065,1710673842375,-229.38618351,0.00017679,2]
[319339066,1710673842384,-151.45421478,0.0001768,2]
[319339067,1710673842393,-150.0,0.000177,2]
[319339068,1710673842403,-150.0,0.000177,2]
[319339069,1710673842412,-154.11102108,0.00017717,2]
[319339070,1710673842421,-517.86735709,0.00017722,2]
[319339071,1710673842430,-160.45,0.00017778,2]
[319339072,1710673842440,-154.5275948,0.00017805,2]
[319339073,1710673842449,-151.45421478,0.00017808,2]
[319339074,1710673842458,-172.84,0.00017808,10]
[319339075,1710673842468,-175.58196687,0.0001784,2]
[319339076,1710673842477,-229.38618351,0.00017853,2]
[319339077,1710673842487,-870.3329582,0.00017894,2]
[319339078,1710673842496,-155.71899125,0.00017899,2]
[319339079,1710673842506,-154.5275948,0.00017929,2]
[319339080,1710673842516,-500.0,0.0001793,2]
[319339081,1710673842525,-3623.32246137,0.00017939,10]
[319339082,1710673842535,-155.0,0.00017939,2]
[319339083,1710673842544,-500.0,0.00017939,2]
[319339084,1710673842554,-280.16784053,0.00017939,2]
[319339085,1710673842566,-377.78365002,0.00017939,2]
[319339086,1710673842576,-500.0,0.00017939,2]
[319339087,1710673842586,-500.0,0.00017939,2]
[319339088,1710673842595,-640.95631722,0.00017939,2]
[319339089,1710673842606,-155.0,0.00017939,2]
[319339090,1710673842616,-500.0,0.00017939,2]
[319339091,1710673842625,-500.0,0.00017939,2]
[319339092,1710673842634,-500.0,0.00017939,2]
[319339093,1710673842644,-500.0,0.00017939,2]
[319339094,1710673842654,-500.0,0.00017939,2]
[319339095,1710673842663,-500.0,0.00017939,2]
[319339096,1710673842673,-500.0,0.00017939,2]
[319339097,1710673842682,-500.0,0.00017939,2]
[319339098,1710673842692,-500.0,0.00017939,2]
[319339099,1710673842701,-500.0,0.00017939,2]
[319339100,1710673842710,-500.0,0.00017939,2]
[319339101,1710673842720,-500.0,0.00017939,2]
[319339102,1710673842729,-500.0,0.00017939,2]
[319339103,1710673842738,-500.0,0.00017939,2]
[319339104,1710673842747,-500.0,0.00017939,2]
[319339105,1710673842757,-500.0,0.00017939,2]
[319339106,1710673842766,-500.0,0.00017939,2]
[319339107,1710673842776,-500.0,0.00017939,2]
[319339108,1710673842786,-500.0,0.00017939,2]
[319339109,1710673842795,-500.0,0.00017939,2]
[319339110,1710673842803,-500.0,0.00017939,2]
[319339111,1710673842812,-500.0,0.00017939,2]
[319339112,1710673842827,-500.0,0.00017939,2]
[319339113,1710673842837,-500.0,0.00017939,2]
[319339114,1710673842846,-500.0,0.00017939,2]
[319339115,1710673842855,-500.0,0.00017939,2]
[319339116,1710673842863,-500.0,0.00017939,2]
[319339117,1710673842872,-500.0,0.00017939,2]
[319339118,1710673842881,-500.0,0.00017939,2]
[319339119,1710673842890,-500.0,0.00017939,2]
[319339120,1710673842898,-500.0,0.00017939,2]
[319339121,1710673842907,-500.0,0.00017939,2]
[319339122,1710673842917,-500.0,0.00017939,2]
[319339123,1710673842925,-504.56,0.00017939,2]
[319339124,1710673842935,-504.56,0.00017939,2]
[319339125,1710673842945,-504.56,0.00017939,2]
[319339126,1710673842954,-504.56,0.00017939,2]
[319339127,1710673842963,-500.0,0.00017939,2]
[319339128,1710673842972,-500.0,0.00017939,2]
[319339129,1710673842981,-500.0,0.00017939,2]
[319339130,1710673842990,-500.0,0.00017939,2]
[319339131,1710673842999,-500.0,0.00017939,2]
[319339132,1710673843008,-500.0,0.00017939,2]
[319339134,1710673843017,-500.0,0.00017939,2]
[319339137,1710673843026,-634.86,0.00017939,2]
[319339139,1710673843035,-500.0,0.00017939,2]
[319339140,1710673843045,-500.0,0.00017939,2]
[319339141,1710673843054,-500.0,0.00017939,2]
[319339142,1710673843063,-500.0,0.00017939,2]
[319339143,1710673843072,-500.0,0.00017941,2]
[319339144,1710673843081,-500.0,0.00017941,2]
[319339145,1710673843092,-500.0,0.00017941,2]
[319339147,1710673843101,-500.0,0.00017941,2]
[319339149,1710673843110,-500.0,0.00017941,2]
[319339151,1710673843119,-500.0,0.00017941,2]
[319339153,1710673843129,-500.0,0.00017941,2]
[319339155,1710673843138,-500.0,0.00017941,2]
[319339157,1710673843148,-500.0,0.00017941,2]
[319339160,1710673843157,-500.0,0.00017941,2]
[319339169,1710673843305,-500.0,0.00017941,2]
[319339170,1710673843337,-500.0,0.00017941,2]
[319339171,1710673843347,-500.0,0.00017941,2]
[319339172,1710673843357,-500.0,0.00017941,2]
[319339173,1710673843366,-500.0,0.00017941,2]
[319339174,1710673843376,-500.0,0.00017941,2]
[319339175,1710673843385,-500.0,0.00017941,2]
[319339176,1710673843395,-500.0,0.00017941,2]
[319339177,1710673843404,-500.0,0.00017941,2]
[319339178,1710673843413,-500.0,0.00017941,2]
[319339179,1710673843423,-500.0,0.00017941,2]
[319339180,1710673843432,-579.22332927,0.00017941,2]
[319339181,1710673843441,-500.0,0.00017941,2]
[319339182,1710673843450,-500.0,0.00017941,2]
[319339183,1710673843459,-500.0,0.00017941,2]
[319339184,1710673843469,-500.0,0.00017941,2]
[319339185,1710673843478,-479.15652298,0.00017941,2]
[319339186,1710673843487,-504.56,0.00017941,2]
[319339187,1710673843497,-504.56,0.00017941,2]
[319339188,1710673843506,-504.56,0.00017941,2]
[319339189,1710673843516,-504.56,0.00017941,2]
[319339190,1710673843526,-500.0,0.00017941,2]
[319339191,1710673843535,-500.0,0.00017941,2]
[319339192,1710673843544,-500.0,0.00017941,2]
[319339193,1710673843554,-500.0,0.00017941,2]
[319339194,1710673843564,-628.80038167,0.00017941,2]
[319339195,1710673843575,-8249.71603748,0.00017945,2]
[319339196,1710673843585,-150.80584846,0.0001795,2]
[319339197,1710673843594,-10000.0,0.00018,3]
[319339198,1710673843604,-3019.0,0.00018,2]
[319339199,1710673843614,-450.0,0.00018,4]
[319339200,1710673843624,-1500.0,0.00018,2]
[319339201,1710673843633,-155.0,0.00018,2]
[319339202,1710673843643,-922.18,0.00018041,2]
[319339203,1710673843653,-816.58,0.00018041,2]
[319339205,1710673843664,-1236.67,0.00018055,2]
[319339207,1710673843673,-816.58,0.00018055,2]
[319339209,1710673843683,-154.11102108,0.0001808,2]
[319339211,1710673843694,-237.930345,0.00018082,2]
[319339213,1710673843704,-150.21260499,0.0001809,2]
[319339215,1710673843713,-161.62356916,0.00018155,2]
[319339217,1710673843722,-638.96594961,0.00018165,2]
[319339220,1710673843732,-828.06,0.00018192,2]
[319339222,1710673843741,-150.0,0.00018192,2]
[319339224,1710673843752,-300.0,0.00018192,2]
[319339226,1710673843762,-346.78,0.00018192,2]
[319339228,1710673843772,-303.61,0.00018192,2]
[319339230,1710673843781,-300.0,0.00018192,2]
[319339232,1710673843791,-150.0,0.00018192,2]
[319339234,1710673843801,-340.9,0.00018192,2]
[319339237,1710673843829,-150.0,0.00018192,2]
[319339239,1710673843841,-150.0,0.00018192,2]
[319339241,1710673843850,-154.11102108,0.00018198,2]
[319339243,1710673843859,-400.0,0.00018212,2]
[319339244,1710673843869,-1283.84,0.00018223,2]
[319339247,1710673843878,-8249.71603748,0.00018264,2]
[319339248,1710673843888,-187.48,0.00018271,2]
[319339250,1710673843897,-229.38618351,0.00018291,2]
[319339252,1710673843906,-151.45421478,0.00018318,2]
[319339255,1710673843916,-500.0,0.00018335,2]
[319339256,1710673843925,-447.6,0.00018335,2]
[319339259,1710673843934,-500.0,0.00018335,2]
[319339260,1710673843944,-500.0,0.00018335,2]
[319339262,1710673843953,-500.0,0.00018335,2]
[319339265,1710673843962,-500.0,0.00018335,2]
[319339266,1710673843971,-500.0,0.00018335,2]
[319339268,1710673843980,-500.0,0.00018335,2]
[319339270,1710673843990,-519.09,0.00018335,2]
[319339272,1710673843999,-500.0,0.00018335,2]
[319339274,1710673844008,-500.0,0.00018335,2]
[319339277,1710673844018,-500.0,0.00018335,2]
[319339278,1710673844026,-516.88,0.00018335,2]
[319339281,1710673844036,-500.0,0.00018335,2]
[319339283,1710673844046,-151.45421478,0.00018357,2]
[319339285,1710673844055,-870.3329582,0.00018397,2]
[319339287,1710673844064,-158.45099349,0.00018403,2]
[319339289,1710673844073,-638.96594961,0.00018408,2]
[319339291,1710673844082,-150.80584846,0.00018439,2]
[319339293,1710673844092,-167.0,0.00018444,2]
[319339295,1710673844101,-517.86735709,0.00018445,2]
[319339296,1710673844110,-638.96594961,0.00018459,2]
[319339299,1710673844119,-150.80584846,0.00018476,2]
[319339301,1710673844129,-500.0,0.00018478,2]
[319339303,1710673844138,-517.86735709,0.000185,2]
[319339304,1710673844148,-1500.0,0.000185,2]
[319339306,1710673844157,-155.71899125,0.00018531,2]
[319339309,1710673844167,-8249.71603748,0.00018582,2]
[319339311,1710673844176,-229.38618351,0.00018606,2]
[319339312,1710673844185,-500.0,0.00018609,2]
[319339315,1710673844194,-641.75,0.00018609,2]
[319339316,1710673844203,-4454.15,0.00018609,2]
[319339318,1710673844213,-471.61,0.0001861,2]
[319339320,1710673844222,-302.2,0.0001861,2]
[319339323,1710673844231,-516.7,0.0001861,2]
[319339324,1710673844241,-150.0,0.0001861,2]
[319339325,1710673844250,-150.7,0.0001861,2]
[319339326,1710673844259,-151.49,0.0001861,2]
[319339327,1710673844268,-300.32,0.0001861,2]
[319339328,1710673844277,-700.3,0.0001861,2]
[319339329,1710673844286,-150.0,0.0001861,2]
[319339330,1710673844295,-414.91,0.0001861,2]
[319339331,1710673844304,-516.7,0.0001861,2]
[319339332,1710673844314,-346.67,0.0001861,2]
[319339333,1710673844323,-150.0,0.0001861,2]
[319339334,1710673844332,-150.0,0.0001861,2]
[319339335,1710673844343,-150.0,0.0001861,2]
[319339336,1710673844353,-302.51,0.0001861,2]
[319339337,1710673844363,-414.91,0.0001861,2]
[319339338,1710673844372,-516.7,0.0001861,2]
[319339339,1710673844381,-150.0,0.0001861,2]
[319339340,1710673844390,-150.0,0.0001861,2]
[319339341,1710673844400,-150.0,0.0001861,2]
[319339342,1710673844410,-876.25,0.0001861,2]
[319339343,1710673844419,-150.0,0.0001861,2]
[319339344,1710673844429,-414.91,0.0001861,2]
[319339345,1710673844439,-300.0,0.0001861,2]
[319339346,1710673844449,-414.91,0.0001861,2]
[319339347,1710673844458,-516.7,0.0001861,2]
[319339348,1710673844467,-150.0,0.0001861,2]
[319339349,1710673844476,-155.0,0.00018678,2]
[319339350,1710673844485,-155.0,0.00018678,2]
[319339351,1710673844494,-204.58733627,0.00018678,2]
[319339352,1710673844504,-483.83232127,0.00018678,2]
[319339353,1710673844514,-703.68895548,0.00018678,2]
[319339354,1710673844523,-155.0,0.00018678,2]
[319339355,1710673844532,-155.0,0.00018679,2]
[319339356,1710673844542,-5342.54681638,0.00018679,2]
[319339357,1710673844551,-500.0,0.00018679,2]
[319339358,1710673844563,-300.0,0.00018679,2]
[319339359,1710673844573,-500.0,0.00018679,2]
[319339360,1710673844582,-500.0,0.00018679,2]
[319339361,1710673844593,-225.72978675,0.00018679,2]
[319339362,1710673844603,-641.75,0.00018679,2]
[319339363,1710673844613,-641.75,0.00018679,2]
[319339364,1710673844622,-641.75,0.00018679,2]
[319339365,1710673844631,-641.75,0.00018679,2]
[319339366,1710673844641,-641.75,0.00018679,2]
[319339367,1710673844651,-641.75,0.00018679,2]
[319339368,1710673844660,-641.75,0.00018679,2]
[319339369,1710673844669,-641.75,0.00018679,2]
[319339370,1710673844678,-641.75,0.00018679,2]
[319339371,1710673844688,-641.75,0.00018679,2]
[319339372,1710673844697,-641.75,0.00018679,2]
[319339373,1710673844707,-4454.15,0.00018679,2]
[319339374,1710673844716,-4454.15,0.00018679,2]
[319339375,1710673844726,-4454.15,0.00018679,2]
[319339376,1710673844736,-4454.15,0.00018679,2]
[319339377,1710673844745,-4454.15,0.00018679,2]
[319339378,1710673844754,-4454.15,0.00018679,2]
[319339379,1710673844764,-4454.15,0.00018679,2]
[319339380,1710673844773,-4454.15,0.00018679,2]
[319339381,1710673844782,-4454.15,0.00018679,2]
[319339382,1710673844792,-4454.15,0.00018679,2]
[319339383,1710673844801,-4454.15,0.00018679,2]
[319339384,1710673844811,-2604645.88544852,0.0001868,2]
[319339385,1710673844820,-155.71899125,0.00018683,2]
[319339386,1710673844833,-300.0,0.00018699,2]
[319339387,1710673844844,-32742.06444478,0.000187,2]
[319339388,1710673844854,-1000.0,0.000187,2]
[319339389,1710673844863,-46500.00000001,0.000187,2]
[319339390,1710673844872,-155.08176691,0.00018703,2]
[319339391,1710673844882,-150.0,0.00018725,2]
[319339392,1710673844891,-229.38618351,0.00018732,2]
[319339393,1710673844901,-150.0,0.00018735,2]
[319339394,1710673844910,-150.80584846,0.00018741,2]
[319339395,1710673844919,-355.31169194,0.00018742,2]
[319339396,1710673844929,-150.0,0.00018763,2]
[319339397,1710673844938,-155.71899125,0.00018766,2]
[319339398,1710673844947,-229.38618351,0.00018798,2]
[319339399,1710673844957,-150.80584846,0.000188,2]
[319339400,1710673844966,-150.0,0.00018802,2]
[319339401,1710673844976,-155.71899125,0.00018807,2]
[319339402,1710673844985,-150.0,0.00018808,2]
[319339403,1710673844994,-249.61449719,0.00018808,2]
[319339404,1710673845003,-150.0,0.00018816,2]
[319339405,1710673845012,-150.0,0.00018826,2]
[319339406,1710673845021,-500.0,0.00018845,2]
[319339407,1710673845030,-500.0,0.00018845,2]
[319339408,1710673845039,-185.41631864,0.00018845,2]
[319339409,1710673845048,-500.0,0.00018845,2]
[319339410,1710673845057,-504.56,0.00018845,2]
[319339411,1710673845066,-500.0,0.00018845,2]
[319339412,1710673845076,-150.0,0.00018847,2]
[319339413,1710673845085,-1867.23,0.00018856,2]
[319339414,1710673845094,-5170.78544176,0.00018878,2]
[319339415,1710673845103,-500.0,0.00018879,2]
[319339416,1710673845112,-500.0,0.00018879,2]
[319339417,1710673845121,-500.0,0.00018879,2]
[319339418,1710673845130,-500.0,0.00018879,2]
[319339419,1710673845139,-500.0,0.00018879,2]
[319339420,1710673845148,-500.0,0.00018879,2]
[319339421,1710673845157,-502.7320487,0.00018879,2]
[319339422,1710673845166,-500.0,0.00018879,2]
[319339423,1710673845175,-500.0,0.00018879,2]
[319339424,1710673845184,-202.34529529,0.00018879,2]
[319339425,1710673845193,-504.56,0.00018879,2]
[319339426,1710673845202,-504.56,0.00018879,2]
[319339427,1710673845211,-504.56,0.00018879,2]
[319339428,1710673845222,-504.56,0.00018879,2]
[319339429,1710673845231,-504.56,0.00018879,2]
[319339430,1710673845241,-504.56,0.00018879,2]
[319339431,1710673845250,-500.0,0.00018879,2]
[319339432,1710673845259,-296.71847077,0.000189,2]
[319339433,1710673845268,-4752.0,0.000189,5]
[319339434,1710673845278,-8249.71603748,0.000189,2]
[319339435,1710673845286,-9728.96451058,0.000189,2]
[319339436,1710673845295,-150.0,0.000189,2]
[319339437,1710673845304,-870.3329582,0.000189,2]
[319339438,1710673845314,-355.31169194,0.000189,2]
[319339439,1710673845324,-237.930345,0.00018904,2]
[319339440,1710673845334,-150.0,0.00018905,2]
[319339441,1710673845345,-150.0,0.00018906,2]
[319339442,1710673845355,-151.45421478,0.00018906,2]
[319339443,1710673845364,-150.0,0.0001892,2]
[319339444,1710673845373,-150.0,0.00018937,2]
[319339445,1710673845382,-150.0,0.00018941,2]
[319339446,1710673845391,-638.96594961,0.00018945,2]
[319339447,1710673845400,-150.0,0.00018946,2]
[319339448,1710673845410,-150.0,0.00018969,2]
[319339449,1710673845419,-619.3656868,0.00018984,3]
[319339450,1710673845428,-600.0,0.00018988,2]
[319339451,1710673845438,-1028.55200717,0.0001899,2]
[319339452,1710673845447,-169.3580961,0.00018992,2]
[319339453,1710673845456,-2858.6546078,0.00018992,2]
[319339454,1710673845465,-500.0,0.00018996,2]
[319339455,1710673845475,-504.56,0.00018996,2]
[319339456,1710673845486,-866.44160151,0.00018998,2]
[319339457,1710673845496,-3967.39244542,0.00018998,2]
[319339458,1710673845505,-1052.59714474,0.00018998,2]
[319339459,1710673845516,-641.75,0.00018998,2]
[319339460,1710673845526,-4454.15,0.00018998,2]
[319339461,1710673845536,-3012.78532948,0.00018999,2]
[319339462,1710673845545,-500.0,0.00018999,2]
[319339463,1710673845555,-500.0,0.00018999,2]
[319339464,1710673845565,-576.90668665,0.00018999,2]
[319339465,1710673845576,-504.56,0.00018999,2]
[319339466,1710673845585,-504.56,0.00018999,2]
[319339467,1710673845595,-504.56,0.00018999,2]
[319339468,1710673845605,-504.56,0.00018999,2]
[319339469,1710673845615,-504.56,0.00018999,2]
[319339470,1710673845625,-504.56,0.00018999,2]
[319339471,1710673845676,-504.56,0.00018999,2]
[319339472,1710673845685,-504.60018906,0.00018999,2]
[319339473,1710673845695,-500.0,0.00018999,2]
[319339474,1710673845704,-500.0,0.00018999,2]
[319339475,1710673845713,-500.0,0.00018999,2]
[319339476,1710673845723,-500.0,0.00018999,2]
[319339477,1710673845733,-500.0,0.00018999,2]
[319339478,1710673845743,-500.0,0.00018999,2]
[319339479,1710673845752,-500.0,0.00018999,2]
[319339480,1710673845762,-306.24,0.00018999,2]
[319339481,1710673845771,-500.0,0.00018999,2]
[319339482,1710673845781,-500.0,0.00018999,2]
[319339483,1710673845789,-500.0,0.00018999,2]
[319339484,1710673845800,-500.0,0.00018999,2]
[319339485,1710673845810,-500.0,0.00018999,2]
[319339486,1710673845820,-500.0,0.00018999,2]
[319339487,1710673845830,-500.0,0.00018999,2]
[319339488,1710673845842,-500.0,0.00018999,2]
[319339489,1710673845852,-500.0,0.00018999,2]
[319339490,1710673845861,-500.0,0.00018999,2]
[319339491,1710673845871,-500.0,0.00018999,2]
[319339492,1710673845880,-500.0,0.00018999,2]
[319339493,1710673845890,-500.0,0.00018999,2]
[319339494,1710673845899,-500.0,0.00018999,2]
[319339495,1710673845910,-500.0,0.00018999,2]
[319339496,1710673845919,-158.5,0.00018999,2]
[319339497,1710673845928,-500.0,0.00018999,2]
[319339498,1710673845939,-500.0,0.00018999,2]
[319339499,1710673845948,-500.0,0.00018999,2]
[319339500,1710673845958,-500.0,0.00018999,2]
[319339501,1710673845967,-500.0,0.00018999,2]
[319339502,1710673845976,-500.0,0.00018999,2]
[319339503,1710673845985,-500.0,0.00018999,2]
[319339504,1710673845994,-500.0,0.00018999,2]
[319339505,1710673846004,-500.0,0.00018999,2]
[319339506,1710673846014,-500.0,0.00018999,2]
[319339507,1710673846023,-500.0,0.00018999,2]
[319339508,1710673846033,-500.0,0.00018999,2]
[319339509,1710673846043,-500.0,0.00018999,2]
[319339510,1710673846052,-500.0,0.00018999,2]
[319339512,1710673846061,-500.0,0.00018999,2]
[319339514,1710673846070,-500.0,0.00018999,2]
[319339515,1710673846079,-500.0,0.00018999,2]
[319339516,1710673846088,-606.12,0.00018999,2]
[319339517,1710673846097,-500.0,0.00018999,2]
[319339518,1710673846105,-500.0,0.00018999,2]
[319339519,1710673846114,-500.0,0.00018999,2]
[319339520,1710673846123,-500.0,0.00018999,2]
[319339521,1710673846132,-500.0,0.00018999,2]
[319339522,1710673846141,-500.0,0.00018999,2]
[319339523,1710673846151,-500.0,0.00018999,2]
[319339524,1710673846160,-500.0,0.00018999,2]
[319339525,1710673846169,-500.0,0.00018999,2]
[319339526,1710673846178,-500.0,0.00018999,2]
[319339527,1710673846187,-500.0,0.00018999,2]
[319339528,1710673846196,-500.0,0.00018999,2]
[319339529,1710673846205,-500.0,0.00018999,2]
[319339530,1710673846214,-538.93014534,0.00018999,2]
[319339531,1710673846224,-519.09,0.00018999,2]
[319339532,1710673846233,-519.09,0.00018999,2]
[319339533,1710673846242,-519.09,0.00018999,2]
[319339534,1710673846252,-519.09,0.00018999,2]
[319339535,1710673846261,-519.09,0.00018999,2]
[319339536,1710673846269,-519.09,0.00018999,2]
[319339537,1710673846279,-519.09,0.00018999,2]
[319339538,1710673846288,-519.09,0.00018999,2]
[319339539,1710673846297,-519.09,0.00018999,2]
[319339540,1710673846306,-519.09,0.00018999,2]
[319339541,1710673846315,-519.09,0.00018999,2]
[319339542,1710673846324,-519.09,0.00018999,2]
[319339543,1710673846333,-519.09,0.00018999,2]
[319339544,1710673846344,-519.09,0.00018999,2]
[319339545,1710673846353,-519.27,0.00018999,2]
[319339546,1710673846362,-500.0,0.00018999,2]
[319339547,1710673846371,-500.0,0.00018999,2]
[319339548,1710673846380,-500.0,0.00018999,2]
[319339549,1710673846389,-500.0,0.00018999,2]
[319339550,1710673846398,-283.4829094,0.00018999,2]
[319339551,1710673846407,-500.0,0.00018999,2]
[319339552,1710673846417,-500.0,0.00018999,2]
[319339553,1710673846427,-500.0,0.00018999,2]
[319339554,1710673846436,-500.0,0.00018999,2]
[319339555,1710673846445,-500.0,0.00018999,2]
[319339556,1710673846455,-500.0,0.00018999,2]
[319339557,1710673846464,-500.0,0.00018999,2]
[319339558,1710673846473,-500.0,0.00018999,2]
[319339559,1710673846482,-419.89,0.00018999,2]
[319339560,1710673846491,-641.75,0.00018999,2]
[319339561,1710673846500,-641.75,0.00018999,2]
[319339562,1710673846509,-641.75,0.00018999,2]
[319339563,1710673846520,-641.75,0.00018999,2]
[319339564,1710673846529,-641.75,0.00018999,2]
[319339565,1710673846538,-641.75,0.00018999,2]
[319339566,1710673846547,-641.96275868,0.00018999,2]
[319339567,1710673846557,-500.0,0.00018999,2]
[319339568,1710673846570,-500.0,0.00018999,2]
[319339569,1710673846579,-500.0,0.00018999,2]
[319339570,1710673846590,-500.0,0.00018999,2]
[319339571,1710673846599,-500.0,0.00018999,2]
[319339572,1710673846610,-500.0,0.00018999,2]
[319339573,1710673846619,-500.0,0.00018999,2]
[319339574,1710673846629,-500.0,0.00018999,2]
[319339575,1710673846638,-500.0,0.00018999,2]
[319339576,1710673846649,-500.0,0.00018999,2]
[319339577,1710673846659,-4454.15,0.00018999,2]
[319339578,1710673846669,-4454.15,0.00018999,2]
[319339579,1710673846678,-500.0,0.00018999,2]
[319339580,1710673846687,-4454.15,0.00018999,2]
[319339581,1710673846697,-500.0,0.00018999,2]
[319339582,1710673846706,-4454.15,0.00018999,2]
[319339583,1710673846715,-593.98,0.00018999,2]
[319339584,1710673846724,-4454.15,0.00018999,2]
[319339585,1710673846734,-4454.15,0.00018999,2]
[319339586,1710673846743,-4454.22909409,0.00018999,2]
[319339587,1710673846752,-516.88,0.00018999,2]
[319339588,1710673846763,-516.88,0.00018999,2]
[319339589,1710673846773,-516.88,0.00018999,2]
[319339590,1710673846782,-516.88,0.00018999,2]
[319339591,1710673846792,-516.88,0.00018999,2]
[319339592,1710673846801,-516.88,0.00018999,2]
[319339593,1710673846811,-516.88,0.00018999,2]
[319339594,1710673846821,-516.88,0.00018999,2]
[319339595,1710673846830,-516.88,0.00018999,2]